[Event "Late-Titled-Tuesday-Blitz-May-14-2024"]
[Site "Chess.com"]
[Date "2024.05.14"]
[Round "9"]
[White "Supelyel"]
[Black "NMJeevanK"]
[Result "1-0"]
[WhiteElo "2443"]
[BlackElo "2688"]
[TimeControl "180+1"]
[EndTime "15:44:04 PDT"]
[Termination "Supelyel won by checkmate"]

1. c4 {[%clk 0:03:00.9]} 1... g6 {[%clk 0:02:58.3]} 2. g3 {[%clk 0:03:00.3]}
2... Bg7 {[%clk 0:02:57.6]} 3. Bg2 {[%clk 0:02:59.9]} 3... d6 {[%clk 0:02:58.5]}
4. Nc3 {[%clk 0:02:54.7]} 4... Nf6 {[%clk 0:02:58.5]} 5. d3 {[%clk 0:02:54.7]}
5... O-O {[%clk 0:02:59]} 6. Nf3 {[%clk 0:02:54.9]} 6... e5 {[%clk 0:02:59.4]}
7. Bg5 {[%clk 0:02:55.4]} 7... h6 {[%clk 0:02:58.5]} 8. Bxf6 {[%clk 0:02:55.5]}
8... Bxf6 {[%clk 0:02:58.1]} 9. O-O {[%clk 0:02:56.4]} 9... Bg7 {[%clk
0:02:57.8]} 10. Rb1 {[%clk 0:02:56.8]} 10... a5 {[%clk 0:02:57.7]} 11. a3 {[%clk
0:02:56.7]} 11... Nc6 {[%clk 0:02:57.4]} 12. b4 {[%clk 0:02:56.3]} 12... axb4
{[%clk 0:02:58.1]} 13. axb4 {[%clk 0:02:57.1]} 13... Rb8 {[%clk 0:02:52.9]} 14.
b5 {[%clk 0:02:56.3]} 14... Ne7 {[%clk 0:02:50.2]} 15. Nd2 {[%clk 0:02:54.3]}
15... f5 {[%clk 0:02:49.6]} 16. Qc2 {[%clk 0:02:53]} 16... f4 {[%clk 0:02:49.3]}
17. Ra1 {[%clk 0:02:51.6]} 17... Nf5 {[%clk 0:02:48]} 18. Nb3 {[%clk 0:02:51.3]}
18... Kh7 {[%clk 0:02:36.2]} 19. Ra7 {[%clk 0:02:50.5]} 19... h5 {[%clk
0:02:26.9]} 20. Ne4 {[%clk 0:02:08.5]} 20... b6 {[%clk 0:02:11.3]} 21. h4 {[%clk
0:01:10.4]} 21... Bb7 {[%clk 0:02:03.1]} 22. Rxb7 {[%clk 0:01:09.2]} 22... Rxb7
{[%clk 0:01:56]} 23. Ng5+ {[%clk 0:01:09.3]} 23... Kh8 {[%clk 0:01:52.4]} 24.
Bxb7 {[%clk 0:01:08.5]} 24... fxg3 {[%clk 0:01:52.5]} 25. fxg3 {[%clk
0:01:03.8]} 25... Qb8 {[%clk 0:01:44.9]} 26. Be4 {[%clk 0:00:54.9]} 26... Ne3
{[%clk 0:01:43.6]} 27. Rxf8+ {[%clk 0:00:52.3]} 27... Qxf8 {[%clk 0:01:44.5]}
28. Qc1 {[%clk 0:00:51.7]} 28... Ng4 {[%clk 0:01:44.4]} 29. Qf1 {[%clk
0:00:47.2]} 29... Bf6 {[%clk 0:01:34.8]} 30. Bxg6 {[%clk 0:00:42.3]} 30... Qg7
{[%clk 0:01:34]} 31. Qf5 {[%clk 0:00:38.4]} 31... Nh6 {[%clk 0:01:13.4]} 32.
Qc8+ {[%clk 0:00:37.5]} 32... Qg8 {[%clk 0:01:10.4]} 33. Qxg8+ {[%clk
0:00:37.2]} 33... Kxg8 {[%clk 0:01:10.3]} 34. Bxh5 {[%clk 0:00:35.3]} 34... Nf5
{[%clk 0:01:10.8]} 35. Kh2 {[%clk 0:00:30.6]} 35... Ng7 {[%clk 0:01:07.3]} 36.
Bg4 {[%clk 0:00:28.6]} 36... Ne8 {[%clk 0:01:02.5]} 37. Ne4 {[%clk 0:00:28.7]}
37... Bd8 {[%clk 0:01:02.4]} 38. Bd7 {[%clk 0:00:26.9]} 38... Ng7 {[%clk
0:01:02.5]} 39. Kh3 {[%clk 0:00:26.9]} 39... Kf8 {[%clk 0:01:02.8]} 40. g4
{[%clk 0:00:26.9]} 40... Ke7 {[%clk 0:01:03.5]} 41. Bc8 {[%clk 0:00:27.1]} 41...
Kf7 {[%clk 0:01:03.2]} 42. g5 {[%clk 0:00:24.8]} 42... Kg6 {[%clk 0:01:03.4]}
43. e3 {[%clk 0:00:25]} 43... Nh5 {[%clk 0:01:02.7]} 44. Bd7 {[%clk 0:00:22]}
44... Ng7 {[%clk 0:01:02.3]} 45. Nbd2 {[%clk 0:00:22]} 45... Nh5 {[%clk
0:01:01.3]} 46. Be8+ {[%clk 0:00:21.5]} 46... Kg7 {[%clk 0:01:01.9]} 47. Bxh5
{[%clk 0:00:21.6]} 47... Be7 {[%clk 0:01:02.5]} 48. Bg4 {[%clk 0:00:22]} 48...
Kh7 {[%clk 0:01:03]} 49. Nf3 {[%clk 0:00:22.2]} 49... Kg6 {[%clk 0:01:03.6]} 50.
d4 {[%clk 0:00:22.7]} 50... exd4 {[%clk 0:01:03.4]} 51. exd4 {[%clk 0:00:23.6]}
51... Bf8 {[%clk 0:01:04]} 52. h5+ {[%clk 0:00:23]} 52... Kh7 {[%clk 0:01:03.8]}
53. Kh4 {[%clk 0:00:23.1]} 53... Be7 {[%clk 0:01:04.3]} 54. h6 {[%clk
0:00:23.1]} 54... Kg6 {[%clk 0:01:04.8]} 55. Bh5+ {[%clk 0:00:23]} 55... Kh7
{[%clk 0:01:04.8]} 56. Kg4 {[%clk 0:00:23.6]} 56... Kh8 {[%clk 0:01:04]} 57. Bg6
{[%clk 0:00:23]} 57... Kg8 {[%clk 0:01:03.8]} 58. Kh5 {[%clk 0:00:23.4]} 58...
Kh8 {[%clk 0:01:04.3]} 59. Bf5 {[%clk 0:00:23.3]} 59... Bf8 {[%clk 0:01:04.4]}
60. g6 {[%clk 0:00:22.8]} 60... Be7 {[%clk 0:01:01.2]} 61. Neg5 {[%clk
0:00:22.6]} 61... Bf6 {[%clk 0:01:00.4]} 62. Be6 {[%clk 0:00:21.4]} 62... d5
{[%clk 0:00:56.7]} 63. Nf7+ {[%clk 0:00:20.9]} 63... Kg8 {[%clk 0:00:56.8]} 64.
N7e5+ {[%clk 0:00:21.4]} 64... Kh8 {[%clk 0:00:56.8]} 65. Ng5 {[%clk 0:00:22.1]}
65... dxc4 {[%clk 0:00:54.4]} 66. Ngf7+ {[%clk 0:00:20.2]} 66... Kg8 {[%clk
0:00:54.5]} 67. h7+ {[%clk 0:00:20.6]} 67... Kf8 {[%clk 0:00:53.7]} 68. Ng4
{[%clk 0:00:19.3]} 68... Bxd4 {[%clk 0:00:52.1]} 69. Nfe5 {[%clk 0:00:18.2]}
69... Kg7 {[%clk 0:00:51.6]} 70. Kg5 {[%clk 0:00:18.6]} 70... c3 {[%clk
0:00:50.8]} 71. Bf5 {[%clk 0:00:19.4]} 71... Bc5 {[%clk 0:00:45]} 72. Nf6 {[%clk
0:00:19.3]} 72... Be7 {[%clk 0:00:45.1]} 73. Nd7 {[%clk 0:00:17.6]} 73... Bd8
{[%clk 0:00:45.2]} 74. Kf4 {[%clk 0:00:17.2]} 74... Be7 {[%clk 0:00:44.6]} 75.
Bc2 {[%clk 0:00:15.5]} 75... Bd6+ {[%clk 0:00:43.8]} 76. Ke3 {[%clk 0:00:15.5]}
76... Be7 {[%clk 0:00:44.4]} 77. Kd3 {[%clk 0:00:16]} 77... Bb4 {[%clk
0:00:44.3]} 78. Kc4 {[%clk 0:00:16.2]} 78... Bd6 {[%clk 0:00:44.4]} 79. Kxc3
{[%clk 0:00:16]} 79... Be7 {[%clk 0:00:44.8]} 80. Kc4 {[%clk 0:00:16.5]} 80...
Bd6 {[%clk 0:00:45.3]} 81. Kd5 {[%clk 0:00:17.1]} 81... Kh8 {[%clk 0:00:45.8]}
82. Ke6 {[%clk 0:00:17.5]} 82... Kg7 {[%clk 0:00:46.2]} 83. Nh5+ {[%clk
0:00:17]} 83... Kh6 {[%clk 0:00:43.7]} 84. h8=Q+ {[%clk 0:00:17.3]} 84... Kg5
{[%clk 0:00:44.6]} 85. Qf6+ {[%clk 0:00:17.2]} 85... Kh6 {[%clk 0:00:45.1]} 86.
g7+ {[%clk 0:00:17.9]} 86... Kxh5 {[%clk 0:00:45.6]} 87. Qg6+ {[%clk 0:00:17.7]}
87... Kh4 {[%clk 0:00:46.5]} 88. g8=Q {[%clk 0:00:18.3]} 88... Kh3 {[%clk
0:00:47.3]} 89. Q8h7# {[%clk 0:00:18.6]} 1-0

[Event "Late-Titled-Tuesday-Blitz-May-14-2024"]
[Site "Chess.com"]
[Date "2024.05.14"]
[Round "9"]
[White "emeli_chess"]
[Black "th3d4rkness"]
[Result "1-0"]
[WhiteElo "2403"]
[BlackElo "2177"]
[TimeControl "180+1"]
[EndTime "15:44:06 PDT"]
[Termination "emeli_chess won on time"]

1. d4 {[%clk 0:03:00.9]} 1... Nf6 {[%clk 0:02:59.3]} 2. c4 {[%clk 0:03:01]} 2...
e6 {[%clk 0:02:59.3]} 3. Nc3 {[%clk 0:03:01]} 3... Bb4 {[%clk 0:02:59.5]} 4. Qc2
{[%clk 0:03:01.2]} 4... c5 {[%clk 0:02:57.4]} 5. dxc5 {[%clk 0:03:00.9]} 5...
Na6 {[%clk 0:02:54.3]} 6. a3 {[%clk 0:03:00.6]} 6... Bxc3+ {[%clk 0:02:52.1]} 7.
Qxc3 {[%clk 0:03:00.9]} 7... Nxc5 {[%clk 0:02:52.4]} 8. f3 {[%clk 0:03:01.3]}
8... O-O {[%clk 0:02:47.1]} 9. b4 {[%clk 0:02:59.7]} 9... Na4 {[%clk 0:02:45.8]}
10. Qc2 {[%clk 0:02:47.3]} 10... b5 {[%clk 0:02:31.5]} 11. e4 {[%clk 0:02:40.9]}
11... d5 {[%clk 0:02:21.1]} 12. cxd5 {[%clk 0:02:36.4]} 12... exd5 {[%clk
0:02:17.5]} 13. e5 {[%clk 0:02:36.8]} 13... Nh5 {[%clk 0:01:55.6]} 14. Bxb5
{[%clk 0:02:19.4]} 14... Qh4+ {[%clk 0:01:38.2]} 15. Qf2 {[%clk 0:02:11.5]}
15... Ng3 {[%clk 0:01:19.2]} 16. Bxa4 {[%clk 0:02:02.5]} 16... Qc4 {[%clk
0:01:04.7]} 17. Bb2 {[%clk 0:01:23.1]} 17... Nxh1 {[%clk 0:01:02.9]} 18. Qe2
{[%clk 0:01:09.7]} 18... Qh4+ {[%clk 0:01:00.9]} 19. g3 {[%clk 0:01:03.9]} 19...
Nxg3 {[%clk 0:01:00]} 20. Qf2 {[%clk 0:01:04.1]} 20... Nf5 {[%clk 0:00:46.8]}
21. Qxh4 {[%clk 0:01:03.3]} 21... Nxh4 {[%clk 0:00:45.3]} 22. Bc6 {[%clk
0:01:03.5]} 22... Rb8 {[%clk 0:00:41.7]} 23. Bxd5 {[%clk 0:01:03.5]} 23... Ng2+
{[%clk 0:00:31.5]} 24. Kf2 {[%clk 0:01:02.4]} 24... Nf4 {[%clk 0:00:31.2]} 25.
Be4 {[%clk 0:01:00.7]} 25... Be6 {[%clk 0:00:29.4]} 26. Rd1 {[%clk 0:00:58]}
26... Rfd8 {[%clk 0:00:28.9]} 27. Rd6 {[%clk 0:00:57]} 27... Rxd6 {[%clk
0:00:21.5]} 28. exd6 {[%clk 0:00:57]} 28... Rd8 {[%clk 0:00:19.3]} 29. Be5
{[%clk 0:00:56.4]} 29... Ng6 {[%clk 0:00:19]} 30. Bxg6 {[%clk 0:00:45.4]} 30...
hxg6 {[%clk 0:00:19]} 31. Bg3 {[%clk 0:00:42.5]} 31... f6 {[%clk 0:00:17.8]} 32.
Ne2 {[%clk 0:00:41.6]} 32... Bc4 {[%clk 0:00:17.7]} 33. Nd4 {[%clk 0:00:40.4]}
33... Kf7 {[%clk 0:00:17.6]} 34. Nc6 {[%clk 0:00:38.5]} 34... Rd7 {[%clk
0:00:18]} 35. Ke3 {[%clk 0:00:34]} 35... Bb5 {[%clk 0:00:17.3]} 36. Nd4 {[%clk
0:00:32.2]} 36... Ba4 {[%clk 0:00:17.3]} 37. Ke4 {[%clk 0:00:28.1]} 37... f5+
{[%clk 0:00:15.7]} 38. Kd5 {[%clk 0:00:27.7]} 38... Rd8 {[%clk 0:00:09.8]} 39.
Nc6 {[%clk 0:00:22.4]} 39... Rd7 {[%clk 0:00:03.3]} 40. Ne5+ {[%clk 0:00:21.5]}
40... Ke8 {[%clk 0:00:01.5]} 41. Nxd7 {[%clk 0:00:20]} 41... Kxd7 {[%clk
0:00:02]} 42. Be5 {[%clk 0:00:19.9]} 42... Bc6+ {[%clk 0:00:02]} 43. Kc5 {[%clk
0:00:19.2]} 43... Bxf3 {[%clk 0:00:02]} 44. Bxg7 {[%clk 0:00:19.4]} 44... g5
{[%clk 0:00:01.7]} 45. Bh6 {[%clk 0:00:19]} 45... g4 {[%clk 0:00:02]} 46. Bf4
{[%clk 0:00:19.2]} 46... Be4 {[%clk 0:00:02]} 47. b5 {[%clk 0:00:17.6]} 47...
Bf3 {[%clk 0:00:01.2]} 48. a4 {[%clk 0:00:17.5]} 48... Be4 {[%clk 0:00:01.4]}
49. a5 {[%clk 0:00:17.7]} 49... Bf3 {[%clk 0:00:01.5]} 50. Kd4 {[%clk
0:00:11.5]} 50... Be4 {[%clk 0:00:01.1]} 51. Kc4 {[%clk 0:00:09.1]} 51... Bf3
{[%clk 0:00:01.4]} 52. Kd3 {[%clk 0:00:09.3]} 52... Bd5 {[%clk 0:00:01.1]} 53.
Kd4 {[%clk 0:00:07.4]} 53... Bf3 {[%clk 0:00:00.3]} 54. Ke5 {[%clk 0:00:07.3]}
54... Be4 {[%clk 0:00:00.4]} 55. a6 {[%clk 0:00:07.4]} 1-0

[Event "Late-Titled-Tuesday-Blitz-May-14-2024"]
[Site "Chess.com"]
[Date "2024.05.14"]
[Round "9"]
[White "Jarming"]
[Black "yaguigor"]
[Result "0-1"]
[WhiteElo "2675"]
[BlackElo "2576"]
[TimeControl "180+1"]
[EndTime "15:44:09 PDT"]
[Termination "yaguigor won on time"]

1. e4 {[%clk 0:02:59]} 1... c5 {[%clk 0:02:59.4]} 2. Nf3 {[%clk 0:02:58.1]} 2...
Nc6 {[%clk 0:02:58.7]} 3. Nc3 {[%clk 0:02:57.4]} 3... Nf6 {[%clk 0:02:55.6]} 4.
Bb5 {[%clk 0:02:53.4]} 4... Qc7 {[%clk 0:02:54.9]} 5. O-O {[%clk 0:02:50]} 5...
Nd4 {[%clk 0:02:53.2]} 6. Bc4 {[%clk 0:02:48.1]} 6... e6 {[%clk 0:02:50]} 7. d3
{[%clk 0:02:47.3]} 7... a6 {[%clk 0:02:42.8]} 8. a4 {[%clk 0:02:45.4]} 8... Ng4
{[%clk 0:02:37.9]} 9. g3 {[%clk 0:02:44.4]} 9... Nxf3+ {[%clk 0:02:36.9]} 10.
Qxf3 {[%clk 0:02:43.9]} 10... Ne5 {[%clk 0:02:37.4]} 11. Qe2 {[%clk 0:02:39.4]}
11... d6 {[%clk 0:02:34.7]} 12. f4 {[%clk 0:02:38.3]} 12... Nc6 {[%clk
0:02:34.2]} 13. Be3 {[%clk 0:02:37]} 13... Be7 {[%clk 0:02:32.5]} 14. Qg2 {[%clk
0:02:35.5]} 14... O-O {[%clk 0:02:31.1]} 15. Ne2 {[%clk 0:02:27.9]} 15... b6
{[%clk 0:02:24.5]} 16. Rf2 {[%clk 0:02:21.5]} 16... Bb7 {[%clk 0:02:22.6]} 17.
f5 {[%clk 0:02:20.9]} 17... exf5 {[%clk 0:02:12.2]} 18. Rxf5 {[%clk 0:02:19.8]}
18... Ne5 {[%clk 0:02:12.2]} 19. Raf1 {[%clk 0:02:15.2]} 19... Nxc4 {[%clk
0:01:45.9]} 20. dxc4 {[%clk 0:02:14.2]} 20... g6 {[%clk 0:01:33.1]} 21. R5f2
{[%clk 0:02:10.7]} 21... f5 {[%clk 0:01:31.8]} 22. Nc3 {[%clk 0:02:08.6]} 22...
Bf6 {[%clk 0:01:30.7]} 23. Nd5 {[%clk 0:02:07.4]} 23... Bxd5 {[%clk 0:01:29.8]}
24. cxd5 {[%clk 0:02:08.3]} 24... Qe7 {[%clk 0:01:25.7]} 25. Bh6 {[%clk
0:02:06.7]} 25... Bd4 {[%clk 0:01:22.2]} 26. Bxf8 {[%clk 0:02:05.9]} 26... Rxf8
{[%clk 0:01:20.5]} 27. c3 {[%clk 0:01:08.4]} 27... Bxf2+ {[%clk 0:01:17.8]} 28.
Qxf2 {[%clk 0:01:09.3]} 28... Qxe4 {[%clk 0:01:14.9]} 29. Qd2 {[%clk 0:01:06.7]}
29... Re8 {[%clk 0:01:12.3]} 30. Kf2 {[%clk 0:01:03.4]} 30... b5 {[%clk
0:01:06]} 31. axb5 {[%clk 0:01:02.5]} 31... axb5 {[%clk 0:01:06.5]} 32. Ra1
{[%clk 0:01:03.1]} 32... c4 {[%clk 0:00:46.3]} 33. Ra6 {[%clk 0:00:59.5]} 33...
Qd3 {[%clk 0:00:40.5]} 34. Qxd3 {[%clk 0:00:32.7]} 34... cxd3 {[%clk 0:00:41.4]}
35. Ra1 {[%clk 0:00:32.9]} 35... Re2+ {[%clk 0:00:39.9]} 36. Kf3 {[%clk
0:00:33.4]} 36... Rxb2 {[%clk 0:00:37.9]} 37. Ke3 {[%clk 0:00:32.6]} 37... d2
{[%clk 0:00:35.5]} 38. Ke2 {[%clk 0:00:32.2]} 38... Kf7 {[%clk 0:00:29.4]} 39.
Ra7+ {[%clk 0:00:16.8]} 39... Kf6 {[%clk 0:00:28.9]} 40. Rxh7 {[%clk 0:00:15.3]}
40... g5 {[%clk 0:00:25.5]} 41. Rh5 {[%clk 0:00:13.6]} 41... g4 {[%clk
0:00:21.7]} 42. h3 {[%clk 0:00:10.6]} 42... gxh3 {[%clk 0:00:20.3]} 43. Rxh3
{[%clk 0:00:11.5]} 43... Ke5 {[%clk 0:00:20.2]} 44. Rh5 {[%clk 0:00:12.4]} 44...
Ke4 {[%clk 0:00:19.5]} 45. Rg5 {[%clk 0:00:10.8]} 45... Rc2 {[%clk 0:00:16.9]}
46. Kd1 {[%clk 0:00:10.2]} 46... Rxc3 {[%clk 0:00:16]} 47. Kxd2 {[%clk
0:00:10.8]} 47... Rd3+ {[%clk 0:00:16.3]} 48. Kc2 {[%clk 0:00:11.7]} 48... Rxd5
{[%clk 0:00:15.2]} 49. Rg8 {[%clk 0:00:12.6]} 49... Kf3 {[%clk 0:00:13.2]} 50.
Rg5 {[%clk 0:00:11.4]} 50... Ke4 {[%clk 0:00:07.7]} 51. Kc3 {[%clk 0:00:11.5]}
51... Re5 {[%clk 0:00:07.2]} 52. Kb4 {[%clk 0:00:11.5]} 52... Kd4 {[%clk
0:00:06.5]} 53. g4 {[%clk 0:00:09.7]} 53... f4 {[%clk 0:00:05.8]} 54. Rg8 {[%clk
0:00:08.9]} 54... f3 {[%clk 0:00:05.2]} 55. Rf8 {[%clk 0:00:08.8]} 55... Ke3
{[%clk 0:00:05.6]} 56. Rf6 {[%clk 0:00:08]} 56... f2 {[%clk 0:00:05]} 0-1

[Event "Late-Titled-Tuesday-Blitz-May-14-2024"]
[Site "Chess.com"]
[Date "2024.05.14"]
[Round "9"]
[White "FuenfgegenWilly"]
[Black "CombativeWombat"]
[Result "0-1"]
[WhiteElo "2445"]
[BlackElo "2353"]
[TimeControl "180+1"]
[EndTime "15:44:11 PDT"]
[Termination "CombativeWombat won by checkmate"]

1. b3 {[%clk 0:02:55.3]} 1... e5 {[%clk 0:02:59.8]} 2. Bb2 {[%clk 0:02:56.2]}
2... Nc6 {[%clk 0:02:59.9]} 3. e3 {[%clk 0:02:57.1]} 3... Nf6 {[%clk 0:03:00.3]}
4. c4 {[%clk 0:02:57.8]} 4... Bc5 {[%clk 0:02:49.5]} 5. a3 {[%clk 0:02:50.3]}
5... a5 {[%clk 0:02:46.8]} 6. d4 {[%clk 0:02:47.7]} 6... exd4 {[%clk 0:02:45.6]}
7. exd4 {[%clk 0:02:48.6]} 7... Bd6 {[%clk 0:02:38.7]} 8. Nf3 {[%clk 0:02:43.7]}
8... O-O {[%clk 0:02:37.4]} 9. Be2 {[%clk 0:02:43.9]} 9... Re8 {[%clk
0:02:30.8]} 10. O-O {[%clk 0:02:44]} 10... b6 {[%clk 0:02:26.6]} 11. Nbd2 {[%clk
0:02:42]} 11... Ba6 {[%clk 0:02:24.5]} 12. Bd3 {[%clk 0:02:37.1]} 12... Ne7
{[%clk 0:02:15.8]} 13. d5 {[%clk 0:02:35.8]} 13... Ng6 {[%clk 0:02:15.4]} 14.
Qc2 {[%clk 0:02:33.1]} 14... Nf4 {[%clk 0:02:00.3]} 15. Bxf6 {[%clk 0:02:32]}
15... Qxf6 {[%clk 0:02:01.2]} 16. Bxh7+ {[%clk 0:02:31.7]} 16... Kh8 {[%clk
0:02:01.9]} 17. Ne4 {[%clk 0:02:27.4]} 17... Rxe4 {[%clk 0:01:32.3]} 18. Bxe4
{[%clk 0:02:25.8]} 18... g5 {[%clk 0:01:32.8]} 19. Qd2 {[%clk 0:02:17]} 19... g4
{[%clk 0:01:29.1]} 20. Ne1 {[%clk 0:02:04.8]} 20... a4 {[%clk 0:01:20]} 21. Nd3
{[%clk 0:01:58.6]} 21... axb3 {[%clk 0:01:14.9]} 22. Qb2 {[%clk 0:01:48.4]}
22... Qxb2 {[%clk 0:01:01]} 23. Nxb2 {[%clk 0:01:49.3]} 23... Be5 {[%clk
0:01:01.3]} 24. Rab1 {[%clk 0:01:48.6]} 24... Bxb2 {[%clk 0:00:58.8]} 25. Rxb2
{[%clk 0:01:49.5]} 25... Bxc4 {[%clk 0:00:59.3]} 26. Rc1 {[%clk 0:01:48.5]}
26... Ne2+ {[%clk 0:00:58]} 27. Rxe2 {[%clk 0:01:41.3]} 27... Bxe2 {[%clk
0:00:58.3]} 28. d6 {[%clk 0:01:40.2]} 28... c6 {[%clk 0:00:56.5]} 29. f3 {[%clk
0:01:30.6]} 29... Rxa3 {[%clk 0:00:53.5]} 30. Kf2 {[%clk 0:01:25.6]} 30... gxf3
{[%clk 0:00:48]} 31. gxf3 {[%clk 0:01:24.9]} 31... Bb5 {[%clk 0:00:36.8]} 32. h4
{[%clk 0:01:07.1]} 32... b2 {[%clk 0:00:33.1]} 33. Rb1 {[%clk 0:01:06]} 33...
Rb3 {[%clk 0:00:33]} 34. h5 {[%clk 0:01:03]} 34... Kg7 {[%clk 0:00:32.6]} 35.
Rh1 {[%clk 0:01:01]} 35... Kh6 {[%clk 0:00:32.7]} 36. Kg3 {[%clk 0:00:56.1]}
36... Bc4 {[%clk 0:00:31.5]} 37. Kf4 {[%clk 0:00:45.3]} 37... Bd5 {[%clk
0:00:28.5]} 38. Bb1 {[%clk 0:00:30.1]} 38... Rxf3+ {[%clk 0:00:22.4]} 39. Kg4
{[%clk 0:00:24.1]} 39... Rc3 {[%clk 0:00:16.2]} 40. Rh2 {[%clk 0:00:22.4]} 40...
Rc4+ {[%clk 0:00:12.5]} 41. Kf5 {[%clk 0:00:19.9]} 41... Be6+ {[%clk 0:00:12.1]}
42. Kf6 {[%clk 0:00:19.7]} 42... Rf4+ {[%clk 0:00:12.3]} 43. Ke7 {[%clk
0:00:19.8]} 43... Rb4 {[%clk 0:00:10.4]} 44. Rh1 {[%clk 0:00:17.7]} 44... c5
{[%clk 0:00:08.5]} 45. Re1 {[%clk 0:00:11.8]} 45... c4 {[%clk 0:00:08.8]} 46.
Rxe6+ {[%clk 0:00:09.9]} 46... fxe6 {[%clk 0:00:09.2]} 47. Kxd7 {[%clk
0:00:10.4]} 47... c3 {[%clk 0:00:09.9]} 48. Kxe6 {[%clk 0:00:09.7]} 48... Rd4
{[%clk 0:00:09]} 49. d7 {[%clk 0:00:10.3]} 49... b5 {[%clk 0:00:09]} 50. Ke7
{[%clk 0:00:09.2]} 50... b4 {[%clk 0:00:09.4]} 51. Bc2 {[%clk 0:00:09.5]} 51...
Kxh5 {[%clk 0:00:08.8]} 52. d8=Q {[%clk 0:00:02.7]} 52... Rxd8 {[%clk
0:00:08.4]} 53. Kxd8 {[%clk 0:00:03.6]} 53... b3 {[%clk 0:00:08.8]} 54. Bxb3
{[%clk 0:00:03.2]} 54... b1=Q {[%clk 0:00:08.7]} 55. Bf7+ {[%clk 0:00:03.1]}
55... Kg5 {[%clk 0:00:08.6]} 56. Ke7 {[%clk 0:00:04]} 56... Qc1 {[%clk
0:00:08.3]} 57. Be6 {[%clk 0:00:04.9]} 57... Qd2 {[%clk 0:00:08.8]} 58. Kf7
{[%clk 0:00:05.2]} 58... c2 {[%clk 0:00:09.3]} 59. Kg8 {[%clk 0:00:04.7]} 59...
c1=Q {[%clk 0:00:10.2]} 60. Kf7 {[%clk 0:00:05.1]} 60... Qcc3 {[%clk 0:00:10.3]}
61. Ke7 {[%clk 0:00:04.9]} 61... Qdd4 {[%clk 0:00:10.4]} 62. Bf7 {[%clk
0:00:04.8]} 62... Qf6+ {[%clk 0:00:10.6]} 63. Ke8 {[%clk 0:00:03.6]} 63... Qc8#
{[%clk 0:00:10.8]} 0-1

[Event "Late-Titled-Tuesday-Blitz-May-14-2024"]
[Site "Chess.com"]
[Date "2024.05.14"]
[Round "9"]
[White "VladimirBugayev"]
[Black "merinasian"]
[Result "1-0"]
[WhiteElo "2329"]
[BlackElo "2488"]
[TimeControl "180+1"]
[EndTime "15:44:19 PDT"]
[Termination "VladimirBugayev won by resignation"]

1. e4 {[%clk 0:03:00.9]} 1... d6 {[%clk 0:02:55]} 2. Nc3 {[%clk 0:03:00.2]} 2...
Nd7 {[%clk 0:02:55.4]} 3. g3 {[%clk 0:02:59.3]} 3... g6 {[%clk 0:02:55.8]} 4.
Bg2 {[%clk 0:02:59.4]} 4... Bg7 {[%clk 0:02:56.5]} 5. d4 {[%clk 0:02:58.4]} 5...
e5 {[%clk 0:02:56.7]} 6. Nge2 {[%clk 0:02:58.9]} 6... Ne7 {[%clk 0:02:56.8]} 7.
O-O {[%clk 0:02:58.5]} 7... O-O {[%clk 0:02:57.4]} 8. h3 {[%clk 0:02:58.6]} 8...
exd4 {[%clk 0:02:56.8]} 9. Nxd4 {[%clk 0:02:58]} 9... Nc6 {[%clk 0:02:57.4]} 10.
Nde2 {[%clk 0:02:57.7]} 10... Re8 {[%clk 0:02:50.9]} 11. g4 {[%clk 0:02:52.8]}
11... Nc5 {[%clk 0:02:39.5]} 12. Ng3 {[%clk 0:02:52.5]} 12... a5 {[%clk
0:02:22.7]} 13. Be3 {[%clk 0:02:36.7]} 13... Be6 {[%clk 0:02:20.1]} 14. f4
{[%clk 0:02:31.8]} 14... Bc4 {[%clk 0:02:18.9]} 15. Re1 {[%clk 0:02:31.8]} 15...
Ne6 {[%clk 0:02:07.1]} 16. Qd2 {[%clk 0:02:24.9]} 16... Qh4 {[%clk 0:01:40.4]}
17. Bf2 {[%clk 0:02:12.4]} 17... Bd4 {[%clk 0:01:40.1]} 18. Kh2 {[%clk
0:01:56.9]} 18... Bxf2 {[%clk 0:01:28.8]} 19. Qxf2 {[%clk 0:01:57.8]} 19... Qf6
{[%clk 0:01:19.8]} 20. f5 {[%clk 0:01:38.9]} 20... Nc5 {[%clk 0:01:08.9]} 21.
Nge2 {[%clk 0:01:16.7]} 21... Qe5+ {[%clk 0:01:02.8]} 22. Kh1 {[%clk 0:01:16.1]}
22... Bxe2 {[%clk 0:00:53.3]} 23. Rxe2 {[%clk 0:01:10]} 23... a4 {[%clk
0:00:46.4]} 24. Nd5 {[%clk 0:00:59.5]} 24... a3 {[%clk 0:00:43.7]} 25. Rf1
{[%clk 0:00:49.6]} 25... g5 {[%clk 0:00:41.6]} 26. Nxc7 {[%clk 0:00:42.1]} 26...
axb2 {[%clk 0:00:39.7]} 27. Nxe8 {[%clk 0:00:42.2]} 27... Rxe8 {[%clk 0:00:39]}
28. h4 {[%clk 0:00:37.1]} 28... h6 {[%clk 0:00:34.2]} 29. Rb1 {[%clk 0:00:27.4]}
29... Na4 {[%clk 0:00:29.3]} 30. Rg1 {[%clk 0:00:21]} 30... Nc3 {[%clk
0:00:28.8]} 31. Ree1 {[%clk 0:00:21.6]} 31... Ra8 {[%clk 0:00:24.1]} 32. hxg5
{[%clk 0:00:20.4]} 32... hxg5 {[%clk 0:00:23.7]} 33. Qd2 {[%clk 0:00:18.5]}
33... Kg7 {[%clk 0:00:23.2]} 34. Qxg5+ {[%clk 0:00:18.1]} 34... Kf8 {[%clk
0:00:20.6]} 35. Qh6+ {[%clk 0:00:13.8]} 35... Ke7 {[%clk 0:00:20.2]} 36. g5
{[%clk 0:00:14.4]} 36... Kd7 {[%clk 0:00:16.3]} 37. f6 {[%clk 0:00:11.7]} 37...
Rxa2 {[%clk 0:00:13]} 38. Qg7 {[%clk 0:00:11]} 38... Ra1 {[%clk 0:00:12]} 39.
Qxf7+ {[%clk 0:00:09.2]} 39... Kd8 {[%clk 0:00:12.4]} 40. Qg7 {[%clk 0:00:08.4]}
40... Rxe1 {[%clk 0:00:11.5]} 41. Rxe1 {[%clk 0:00:07.4]} 41... b1=Q {[%clk
0:00:11.6]} 42. Rxb1 {[%clk 0:00:08.1]} 42... Nxb1 {[%clk 0:00:11.8]} 43. Qg8+
{[%clk 0:00:06.7]} 43... Kc7 {[%clk 0:00:11.6]} 44. f7 {[%clk 0:00:07.3]} 44...
Qg3 {[%clk 0:00:11.2]} 45. f8=Q {[%clk 0:00:07.1]} 45... Qh4+ {[%clk 0:00:11.5]}
46. Kg1 {[%clk 0:00:07.1]} 46... Qe1+ {[%clk 0:00:11.5]} 47. Qf1 {[%clk
0:00:07.2]} 47... Qe3+ {[%clk 0:00:11.7]} 48. Qf2 {[%clk 0:00:07.6]} 48... Qc1+
{[%clk 0:00:11.7]} 49. Kh2 {[%clk 0:00:08.1]} 49... Nc3 {[%clk 0:00:11.5]} 50.
Qg7+ {[%clk 0:00:07.6]} 50... Kc8 {[%clk 0:00:09.9]} 51. Qxc3 {[%clk 0:00:08.1]}
51... Qxg5 {[%clk 0:00:08.8]} 52. Qh3+ {[%clk 0:00:07]} 52... Kb8 {[%clk
0:00:08]} 53. Qfg3 {[%clk 0:00:07.6]} 53... Qd2 {[%clk 0:00:07.1]} 54. Qh6
{[%clk 0:00:07.1]} 54... Qc1 {[%clk 0:00:06]} 55. Qhxd6+ {[%clk 0:00:06.9]}
55... Ka7 {[%clk 0:00:06]} 56. Qc5+ {[%clk 0:00:06.8]} 56... Ka6 {[%clk
0:00:05.2]} 57. e5 {[%clk 0:00:06.4]} 57... Qh6+ {[%clk 0:00:04.9]} 58. Bh3
{[%clk 0:00:05.7]} 58... Qd2+ {[%clk 0:00:04.9]} 59. Qg2 {[%clk 0:00:05.8]}
59... Qf4+ {[%clk 0:00:04.7]} 60. Kh1 {[%clk 0:00:04.1]} 60... Qc1+ {[%clk
0:00:04.4]} 61. Qcg1 {[%clk 0:00:04.6]} 61... Qh6 {[%clk 0:00:04.2]} 62. Q1f1+
{[%clk 0:00:04.3]} 62... Ka7 {[%clk 0:00:03]} 63. Qf6 {[%clk 0:00:04]} 63...
Qc1+ {[%clk 0:00:01.6]} 64. Qg1+ {[%clk 0:00:04.3]} 64... Qxg1+ {[%clk
0:00:01.1]} 65. Kxg1 {[%clk 0:00:05.2]} 1-0